Workbook

Sheet Instructions

Sheet Fire Resistance
D1: Date
D2: Project Name
D3: Project Number
D4: Unit Description
A10: Fire Rating Based on Single Wythe CMU Wall
B11: ***This section is meant for producers only! Designers should not use this section of the estimator to create their own mixes. Local producers should be consulted if the mix is needed to be determined.
A13: Step 1: Enter Equivalent Thickness | G13: =CONCATENATE("Refer to the SAAP Calculator for an estimated equivalent thickness based on provided dimensions.", "The subsequent calculations will not account for any tapering of the block.", "For more accurate calculations, enter the equivalent thickness given from an ASTM C140 Report.") -> Refer to the SAAP Calculator for an estimated equivalent thickness based on provided dimensions.The subsequent calculations will not account for any tapering of the block.For more accurate calculations, enter the equivalent thickness given from an ASTM C140 Report.
A14: Enter the Equivalent Thickness | E14: 8
A16: Step 2: Fill out the aggregate composition of the unit
E17: % Volume Breakdown
A18: Calcareous or Siliceous Gravel | E18: 35 | G18: =IF(OR(E22<100%,E22>100%),"The aggregate compostion must equal 100% Adjust accordingly","") -> 
A19: Limestone, Cinders or Unexpanded Slag | E19: 25
A20: Expanded clay, shale, or slate | E20: 15
A21: Expanded slag or pumice | E21: 25
E22: =SUM(E18:E21)/100 -> 1
A24: Fire Rating Based on Multi Wythe CMU Wall
B25: ***This section is meant for designers if they wish to determine how to effect the fire rating with external components for a CMU wall.
A27: Step 1: Enter Wythe Details
A28: How many total wythes are present including the CMU wall? | E28: 2
A29: Select the desired layout of the mutli-wythe configuration | E29: Clay / CMU
A31: Do you wish to enter a fire rating or enter equivalent thickness for clay (brick, tile, or shale) or CMU wythe(s)? | E31: Equivalent Thickness
A32: =IF($E$31="Fire Rating","Step 2a: Enter Fire Rating of Wythe(s) ","Step 2a: Enter Equivalent Thickness of Wythe(s) ") -> Step 2a: Enter Equivalent Thickness of Wythe(s)
A33: =IF(AND($E$28>1,$E$31="Fire Rating",OR($E$30="Clay / CMU / Clay",$E$29="Clay / CMU",$E$30="Clay / CMU / CMU")),"Enter the fire rating of clay wythe #1",IF(AND($E$28>1,$E$31="Fire Rating",OR($E$30="CMU / CMU / CMU",$E$29="CMU / CMU")),"Enter the fire rating of CMU wythe #1",IF(AND($E$28>1,$E$31="Equivalent Thickness",OR($E$30="Clay / CMU / Clay",$E$29="Clay / CMU",$E$30="Clay / CMU / CMU")),"Enter the equivalent thickness of clay wythe #1","Enter the equivalent thickness of CMU wythe #1"))) -> Enter the equivalent thickness of clay wythe #1 | E33: 3 | F33: =IF(AND($E$28>1,$E$31="Fire Rating"),"hours", IF(AND($E$28>1,$E$31="Equivalent Thickness"), "in.","")) -> in. | G33: =IF($E$31="Equivalent Thickness","",IF(AND($E$31="Fire Rating",1<=$E33,$E33<=4),"","Enter a fire rating between 1 hr and 4 hrs.")) -> 
A34: =IF(AND($E$28>2,$E$31="Fire Rating",OR($E$30="Clay / CMU / Clay",$E$29="Clay / CMU")),"Enter the fire rating of clay wythe #2",IF(AND($E$28>2,$E$31="Fire Rating",OR($E$30="CMU / CMU / CMU",$E$29="CMU / CMU",E30="Clay / CMU / CMU")),"Enter the fire rating of CMU wythe #2",IF(AND($E$28>2,$E$31="Equivalent Thickness",OR($E$30="Clay / CMU / Clay",$E$29="Clay / CMU")),"Enter the equivalent thickness of clay wythe #2",IF(AND($E$28>2,$E$31="Equivalent Thickness",OR($E$30="CMU / CMU / CMU",$E$29="CMU / CMU",$E$30="Clay / CMU / CMU")),"Enter the equivalent thickness of CMU wythe #2","")))) ->  | F34: =IF(AND($E$28>2,$E$31="Fire Rating"),"hours", IF(AND($E$28>2,$E$31="Equivalent Thickness"), "in.","")) ->  | G34: =IF(OR($E$31="Equivalent Thickness",A34=""),"",IF(AND(E28=3,$E$31="Fire Rating",1<=$E34,$E34<=4),"","Enter a fire rating between 1 hr and 4 hrs.")) -> 
A36: =IF(AND($E$31="Equivalent Thickness",OR(E29="Clay / CMU",E30="Clay / CMU / Clay",$E$30="Clay / CMU / CMU")),"Step 2b: Enter Type of Clay Wythe(s)","") -> Step 2b: Enter Type of Clay Wythe(s)
A37: =IF(AND($E$31="Equivalent Thickness",$E$28>=2,OR(E29="Clay / CMU",E30="Clay / CMU / Clay",$E$30="Clay / CMU / CMU")),"What is clay wythe #1 material type?","") -> What is clay wythe #1 material type? | E37: >=75% Solid
A38: =IF(AND($E$31="Equivalent Thickness",$E$28>2,OR(E29="Clay / CMU",E30="Clay / CMU / Clay")),"What is clay wythe #2 material type?","") -> 
A40: =IF(AND($E$31="Equivalent Thickness",$E$28>=2,E30="Clay / CMU / CMU"),"Step 2c: Enter CMU Wythe Composition",IF(AND($E$31="Equivalent Thickness",$E$28>=2,A45="CMU Wythe #1 Composition"),"Step 2b: Enter CMU Wythe Composition","")) -> 
A41: =IF(AND($E$31="Equivalent Thickness",$E$28>=2,OR(E29="CMU / CMU",E30="CMU / CMU / CMU")), "CMU Wythe #1 Composition","") -> 
A42: =IF(AND($E$31="Equivalent Thickness",$E$28>=2,OR(E29="CMU / CMU",E30="CMU / CMU / CMU")),"Calcareous or Siliceous Gravel","") ->  | G42: =IF(AND(A41="CMU Wythe #1 Composition",OR(E46<100%,E46>100%)),"The aggregate compostion must equal 100% Adjust accordingly","") -> 
A43: =IF(AND($E$31="Equivalent Thickness",$E$28>=2,OR(E29="CMU / CMU",E30="CMU / CMU / CMU")),"Limestone, Cinders or Unexpanded Slag","") -> 
A44: =IF(AND($E$31="Equivalent Thickness",$E$28>=2,OR(E29="CMU / CMU",E30="CMU / CMU / CMU")),"Expanded clay, shale, or slate","") -> 
A45: =IF(AND($E$31="Equivalent Thickness",$E$28>=2,OR(E29="CMU / CMU",E30="CMU / CMU / CMU")),"Expanded slag or pumice","") -> 
E46: =SUM(E42:E45)/100 -> 0
A48: =IF(AND($E$31="Equivalent Thickness",$E$28>2,OR(E29="CMU / CMU",E30="CMU / CMU / CMU",$E$30="Clay / CMU / CMU")), "CMU Wythe #2 Composition","") -> 
A49: =IF(AND($E$31="Equivalent Thickness",$E$28>2,OR(E29="CMU / CMU",E30="CMU / CMU / CMU",$E$30="Clay / CMU / CMU")), "Calcareous or Siliceous Gravel","") ->  | G49: =IF(AND(A48="CMU Wythe #2 Composition",OR(E53<100%,E53>100%)),"The aggregate compostion must equal 100% Adjust accordingly","") -> 
A50: =IF(AND($E$31="Equivalent Thickness",$E$28>2,OR(E29="CMU / CMU",E30="CMU / CMU / CMU",$E$30="Clay / CMU / CMU")), "Limestone, Cinders or Unexpanded Slag","") -> 
A51: =IF(AND($E$31="Equivalent Thickness",$E$28>2,OR(E29="CMU / CMU",E30="CMU / CMU / CMU",$E$30="Clay / CMU / CMU")), "Expanded clay, shale, or slate","") -> 
A52: =IF(AND($E$31="Equivalent Thickness",$E$28>2,OR(E29="CMU / CMU",E30="CMU / CMU / CMU",$E$30="Clay / CMU / CMU")), "Expanded slag or pumice","") -> 
E53: =SUM(E49:E52)/100 -> 0
A82: Fire Rating Based on Finish Materials
B83: ***This section is meant for designers if they wish to determine how to effect the fire rating with external components for a CMU wall.
A85: Step 1: Enter Assembly Description
A86: **The option of a clay veneer and finish is a not a calculatable option due to multi-wythe walls typically obtaining a fire rating > 4 hrs.
A87: What type of assembly is to be analyzed? | E87: CMU Single Wythe with a finish on both sides
A88: Step 2: Enter Non-Fire Side Finish Detail(s)
A89: Non-Fire-Exposed Side
A90: =IF($E$87="CMU Single Wythe with a finish on both sides", "What type of finish is applied on one side (Finish #1) of the wythe?","What type of finish is being applied?") -> What type of finish is applied on one side (Finish #1) of the wythe? | E90: Portland Cement Sand Plaster | F90: =IF($E$87="CMU Single Wythe with a finish on both sides",IFERROR('Fire Resistance Rating'!$E$239,2),IFERROR('Fire Resistance Rating'!$E$153,2)) -> 1 | G90: =IF(F90=2,"This combination of material and thickness is not possible. Please see Tables 4, 5, and 6 of the instruction guide for a list of possible combinations.","") -> 
A91: What is the aggregate type in concrete masonry | E91: =IF(SUM(E20:E21)>=80,"80% or more by volume of expanded shale_slate_clay_slag_pumice","Siliceous_Calcareous_Limestone_Cinders_Air Cooled Blast Furnace Slag") -> Siliceous_Calcareous_Limestone_Cinders_Air Cooled Blast Furnace Slag
D92: =IF(AND($E$90="Portland Cement Sand Plaster",$E$91="80% or more by volume of expanded shale_slate_clay_slag_pumice"),"Is it direct applied?","") ->  | E92: Yes
D93: =IF(AND($E$90="Portland Cement Sand Plaster",$E$91="80% or more by volume of expanded shale_slate_clay_slag_pumice"),"Enter Percent by Volume of Expanded Shale/Slate/Clay/Slag/Pumice","") -> 
A96: =IF($E$87="CMU Single Wythe with a finish on both sides","What type of finish is applied on the other side (Finish #2) of the wythe?","") -> What type of finish is applied on the other side (Finish #2) of the wythe? | E96: Gypsum Sand Plaster | F96: =IFERROR('Fire Resistance Rating'!$E$223,2) -> 1.25 | G96: =IF(AND(E87="CMU Single Wythe with a finish on both sides",F96=2),"This combination of material and thickness is not possible. Please see Tables 4, 5, and 6 of the instruction guide for a list of possible combinations.","") -> 
A97: =IF($E$87="CMU Single Wythe with a finish on both sides","What is the aggregate type in concrete masonry","") -> What is the aggregate type in concrete masonry | E97: =IF(SUM($E$20:$E$21)>=80,"80% or more by volume of expanded shale_slate_clay_slag_pumice","Siliceous_Calcareous_Limestone_Cinders_Air Cooled Blast Furnace Slag") -> Siliceous_Calcareous_Limestone_Cinders_Air Cooled Blast Furnace Slag
D98: =IF($E$87="CMU Single Wythe with a finish on both sides ",IF(AND($E$96="Portland Cement Sand Plaster",$E$97="80% or more by volume of expanded shale_slate_clay_slag_pumice"),"Is it direct applied?",""),"") -> 
D99: =IF($E$87="CMU Single Wythe with a finish on both sides ",IF(AND($E$96="Portland Cement Sand Plaster",$E$97="80% or more by volume of expanded shale_slate_clay_slag_pumice"),"Enter Percent by Volume of Expanded Shale/Slate/Clay/Slag/Pumice",""),"") -> 
A101: =IF(OR(E92="Yes",$E$90="Gypsum Vermiculite or Perlite Plaster"),"","What is the finish #1 thickness?") ->  | E101: 1/2 in. | F101: =IF(E101="3/8 in.",3/8,IF(E101="1/2 in.",1/2,IF(E101="5/8 in.",5/8,IF(E101="3/4 in.",3/4,IF(E101="7/8 in.",7/8,IF(E101="1 in.",1,IF(E101="Two Layers of 3/8 in.",6/8,IF(E101="One Layer of 3/8 in. and One layer of 1/2 in.",3/8+1/2,1)))))))) -> 0.5
A102: =IF(OR(E92="Yes",$E$90="Gypsum Vermiculite or Perlite Plaster"),"What is the Finish #1 thickness?","") -> What is the Finish #1 thickness? | E102: 3/8 in. | F102: =IF(OR(E92="Yes",E90="Gypsum Vermiculite or Perlite Plaster"),"in.","") -> in.
A104: =IF(E87="CMU Single Wythe with finish on one (1) side","",IF(OR(E98="Yes",$E$96="Gypsum Vermiculite or Perlite Plaster"),"","What is the finish #2 thickness?")) -> What is the finish #2 thickness? | E104: 1/2 in. | F104: =IF(E104="3/8 in.",3/8,IF(E104="1/2 in.",1/2,IF(E104="5/8 in.",5/8,IF(E104="3/4 in.",3/4,IF(E104="7/8 in.",7/8,IF(E104="1 in.",1,IF(E104="Two Layers of 3/8 in.",6/8,IF(E104="One Layer of 3/8 in. and One layer of 1/2 in.",3/8+1/2,1)))))))) -> 0.5
A105: =IF(AND(E87="CMU Single Wythe with a finish on both sides",OR(E98="Yes",$E$96="Gypsum Vermiculite or Perlite Plaster")),"What is the Finish #2 thickness?","") ->  | F105: =IF(A105="What is the finish #2 thickness?","in.","") -> 
A107: Step 3: Enter Fire Side Finish Detail(s)
A108: Fire-Exposed Side | F108: =IFERROR('Fire Resistance Rating'!$E$169,1) ->  | G108: =IF(F108=1,"This combination is not possible. Please see Tables 4, 5, and 6 of the instruction guide for a list of possible combinations.","") -> 
A109: =IF($E$87="CMU Single Wythe with a finish on both sides", "Fire Side - Finish #1","Fire Side Finish") -> Fire Side - Finish #1 | E109: Portland Cement-Sand Plaster on Metal Lath
E110: 3/8 in. | G110: =IF($E$90="Gypsum Vermiculite or Perlite Plaster","Fire Side Finish Calculations cannot be properly performed with current finish selection. The calculator will assume no finish is present.","") -> 
D111: =IF($E$109="Direct Applied Portland Cement","Enter Plaster Thickness (in.)","") -> 
A113: =IF($E$87="CMU Single Wythe with a finish on both sides", "Fire Side - Finish #2","") -> Fire Side - Finish #2 | E113: Gypsum-Sand Plaster on 3/8 in. gypsum lath | F113: =IFERROR('Fire Resistance Rating'!$E$237,1) -> 0.5833333333 | G113: =IF(F113=1,"This combination is not possible. Please see Tables 4, 5, and 6 of the instruction guide for a list of possible combinations.","") -> 
E114: 1/2 in.
D115: =IF($E$113="Direct Applied Portland Cement","Enter Plaster Thickness (in.)","") ->  | G115: =IF(AND($E$87="CMU Single Wythe with a finish on both sides",$E$96="Gypsum Vermiculite or Perlite Plaster"),"Fire Side Finish Calculations cannot be properly performed with current finish selection. The calculator will assume no finish is present.","") -> 
A118: Step 4: Detail Checks
A119: Does thickness #1 non-fire side and fire side match? | E119: =IF(E90="Gypsum Vermiculite or Perlite Plaster","N/A",IF(E102=E110,"Yes",IF(AND(E110="Direct Applied",F101=E111),"Yes","Change thicknesses to match"))) -> Yes
A120: =IF(E87="CMU Single Wythe with a finish on both sides","Does thickness #2 non-fire side and fire side match?","") -> Does thickness #2 non-fire side and fire side match? | E120: =IF(AND(E87="CMU Single Wythe with a finish on both sides",E96="Gypsum Vermiculite or Perlite Plaster"),"N/A",IF(E104=E114,"Yes",IF(AND(E114="Direct Applied",F104=E115),"Yes","Change thicknesses to match"))) -> Yes
A121: Does the non-fire finish and fire side finish for finish #1 match? | E121: =IF(AND(E90="Portland Cement Sand Plaster",OR(E109="Direct Applied Portland Cement",E109="Portland Cement-Sand Plaster on Metal Lath")),"Yes",IF(AND(E90="Gypsum Sand Plaster",OR(E109="Gypsum-Sand Plaster on 3/8 in. gypsum lath",E109="Gypsum-Sand Plaster on Metal Lath")),"Yes",IF(AND(E90="Gypsum Wallboard",OR(E109="Gypsum Wallboard",E109="Type 'X' Gypsum Wallboard")),"Yes",IF(E90="Gypsum Vermiculite or Perlite Plaster","N/A","Adjust non-fire/fire side finishes to make them matching")))) -> Yes
A122: =IF(E87="CMU Single Wythe with a finish on both sides","Does the non-fire finish and fire side finish for finish #2 match?","") -> Does the non-fire finish and fire side finish for finish #2 match? | E122: =IF(AND(E96="Portland Cement Sand Plaster",OR(E113="Direct Applied Portland Cement",E113="Portland Cement-Sand Plaster on Metal Lath")),"Yes",IF(AND(E96="Gypsum Sand Plaster",OR(E113="Gypsum-Sand Plaster on 3/8 in. gypsum lath",E113="Gypsum-Sand Plaster on Metal Lath")),"Yes",IF(AND(E96="Gypsum Wallboard",OR(E113="Gypsum Wallboard",E113="Type 'X' Gypsum Wallboard")),"Yes",IF(E96="Gypsum Vermiculite or Perlite Plaster","N/A","Adjust non-fire/fire side finishes to make them matching")))) -> Yes
A123: Does the CMU contribute equal to or more than half of the total fire rating? | E123: =IF(AND(#REF!="Yes",E183>0.5*#REF!),"Yes",IF(#REF!="No",OR(E183>0.5*E268,E183>0.5*E233),"No, the selected CMU does meet IBC codes.")) -> 
C124: ='Fire Resistance Rating'!$C$16 -> Max/Min Equivalent Thickness Check | D124: Fire Rating
A125: =$A$18 -> Calcareous or Siliceous Gravel | C125: =IF('Fire Resistance Rating'!$E$155>'Fire Resistance Lookup Graph'!B3,'Fire Resistance Lookup Graph'!B3,IF('Fire Resistance Rating'!$E$155<'Fire Resistance Lookup Graph'!P3,'Fire Resistance Lookup Graph'!P3,'Fire Resistance Rating'!$E$155)) -> 6.2 | D125: =0.0765*C125^2+0.1955*C125-0.1732 -> 3.97956
A126: =$A$19 -> Limestone, Cinders or Unexpanded Slag | C126: =IF('Fire Resistance Rating'!$E$155>'Fire Resistance Lookup Graph'!B4,'Fire Resistance Lookup Graph'!B4,IF('Fire Resistance Rating'!$E$155<'Fire Resistance Lookup Graph'!P4,'Fire Resistance Lookup Graph'!P4,'Fire Resistance Rating'!$E$155)) -> 5.9 | D126: =0.0839*C126^2+0.219*C126-0.2133 -> 3.999359
A127: =$A$20 -> Expanded clay, shale, or slate | C127: =IF('Fire Resistance Rating'!$E$155>'Fire Resistance Lookup Graph'!B5,'Fire Resistance Lookup Graph'!B5,IF('Fire Resistance Rating'!$E$155<'Fire Resistance Lookup Graph'!P5,'Fire Resistance Lookup Graph'!P5,'Fire Resistance Rating'!$E$155)) -> 5.1 | D127: =0.1668*C127^2-0.0765*C127+0.0839 -> 4.032218
A128: =$A$21 -> Expanded slag or pumice | C128: =IF('Fire Resistance Rating'!$E$155>'Fire Resistance Lookup Graph'!B6,'Fire Resistance Lookup Graph'!B6,IF('Fire Resistance Rating'!$E$155<'Fire Resistance Lookup Graph'!P6,'Fire Resistance Lookup Graph'!P6,'Fire Resistance Rating'!$E$155)) -> 4.7 | D128: =0.1389*C128^2+0.2342*C128-0.1647 -> 4.004341
C129: Fire Rating of Finish Alone | D129: =($E$18*D125+$E$19*D126+E20*D127+$E$21*D128)/100 -> 3.9986037

Sheet Fire Resistance Rating
G1: Date: | H1: ='Fire Resistance '!E1 -> 00:00:00
G2: Project Name: | H2: ='Fire Resistance '!E2 -> 0
G3: Project Number: | H3: ='Fire Resistance '!E3 -> 0
G4: Unit Description: | H4: ='Fire Resistance '!E4 -> 0
D7: Unit Composition
D8: Calcareous or Siliceous Gravel | F8: ='Fire Resistance '!E18/100 -> 0.35
D9: Limestone, Cinders or Unexpanded Slag | E9: Limestone, Cinders or Unexpanded Slag | F9: ='Fire Resistance '!E19/100 -> 0.25
D10: Expanded clay, shale, or slate | E10: Expanded clay, shale, or slate | F10: ='Fire Resistance '!E20/100 -> 0.15
D11: Expanded slag or pumice | E11: Expanded slag or pumice | F11: ='Fire Resistance '!E21/100 -> 0.25
A13: Fire Rating Based on Composition - Single Wythe CMU
B15: Equivalent Thickness of Unit | E15: ='Fire Resistance '!E14 -> 8 | F15: in.
C16: Max/Min Equivalent Thickness Check | D16: Fire Rating
A17: ='Fire Resistance '!$A$18 -> Calcareous or Siliceous Gravel | C17: =IF($E$15>'Fire Resistance Lookup Graph'!$B$3,'Fire Resistance Lookup Graph'!$B$3,IF($E$15<'Fire Resistance Lookup Graph'!$P$3,'Fire Resistance Lookup Graph'!$P$3,$E$15)) -> 6.2 | D17: =0.0765*C17^2+0.1955*C17-0.1732 -> 3.97956
A18: ='Fire Resistance '!$A$19 -> Limestone, Cinders or Unexpanded Slag | C18: =IF($E$15>'Fire Resistance Lookup Graph'!$B$4,'Fire Resistance Lookup Graph'!$B$4,IF($E$15<'Fire Resistance Lookup Graph'!$P$4,'Fire Resistance Lookup Graph'!$P$4,$E$15)) -> 5.9 | D18: =0.0839*C18^2+0.219*C18-0.2133 -> 3.999359
A19: ='Fire Resistance '!$A$20 -> Expanded clay, shale, or slate | C19: =IF($E$15>'Fire Resistance Lookup Graph'!$B$5,'Fire Resistance Lookup Graph'!$B$5,IF($E$15<'Fire Resistance Lookup Graph'!$P$5,'Fire Resistance Lookup Graph'!$P$5,$E$15)) -> 5.1 | D19: =0.1668*C19^2-0.0765*C19+0.0839 -> 4.032218
A20: ='Fire Resistance '!$A$21 -> Expanded slag or pumice | C20: =IF($E$15>'Fire Resistance Lookup Graph'!$B$6,'Fire Resistance Lookup Graph'!$B$6,IF($E$15<'Fire Resistance Lookup Graph'!$P$6,'Fire Resistance Lookup Graph'!$P$6,$E$15)) -> 4.7 | D20: =0.1389*C20^2+0.2342*C20-0.1647 -> 4.004341
B22: Fire Rating of Unit | E22: =('Fire Resistance '!E18*D17+'Fire Resistance '!E19*D18+'Fire Resistance '!E20*D19+'Fire Resistance '!E21*D20)/100 -> 3.9986037 | F22: hours
D25: The following fire rating calculations were based off of ACI 216/1/TMS 216
G67: Date: | H67: =H1 -> 00:00:00
G68: Project Name: | H68: =H2 -> 0
G69: Project Number: | H69: =H3 -> 0
G70: Unit Description: | H70: =H4 -> 0
D73: Unit Wythe Composition
D74: Calcareous or Siliceous Gravel | F74: =$F8 -> 0.35
D75: Limestone, Cinders or Unexpanded Slag | E75: Limestone, Cinders or Unexpanded Slag | F75: =$F9 -> 0.25
D76: Expanded clay, shale, or slate | E76: Expanded clay, shale, or slate | F76: =$F10 -> 0.15
D77: Expanded slag or pumice | E77: Expanded slag or pumice | F77: =$F11 -> 0.25
A79: Fire Rating Based on Multi-Wythe - Brick and CMU
B81: Fire Rating of Unit | E81: ='Fire Resistance Rating'!$E$22 -> 3.9986037 | F81: hours
B83: =IF(AND('Fire Resistance '!$E$31="Equivalent Thickness",'Fire Resistance '!$E$28>=2,OR('Fire Resistance '!$E$30="Clay / CMU / Clay",'Fire Resistance '!$E$29="Clay / CMU",'Fire Resistance '!$E$30="Clay / CMU / CMU")),"Equivalent Thickness for Clay Wythe #1",IF(AND('Fire Resistance '!$E$31="Equivalent Thickness",'Fire Resistance '!$E$28>=2,OR('Fire Resistance '!$E$30="CMU / CMU / CMU",'Fire Resistance '!$E$29="CMU / CMU")),"Equivalent Thickness for CMU Wythe #1",IF(AND('Fire Resistance '!$E$31="Fire Rating",'Fire Resistance '!$E$28>=2,OR('Fire Resistance '!$E$30="Clay / CMU / Clay",'Fire Resistance '!$E$29="Clay / CMU",'Fire Resistance '!$E$30="Clay / CMU / CMU")),"Fire Rating for clay Wythe #1","Fire Rating for CMU Wythe #1"))) -> Equivalent Thickness for Clay Wythe #1 | E83: ='Fire Resistance '!$E$33 -> 3 | F83: =IF(AND('Fire Resistance '!$E$31="Equivalent Thickness",'Fire Resistance '!$E$28>=2), "in.", "hours") -> in.
C84: Max/Min Equivalent Thickness Check - CMU #1 | D84: Fire Rating - CMU #1 | E84: Max/Min Equivalent Thickness Check - CMU #2 | F84: Fire Rating - CMU #2
A85: ='Fire Resistance '!$A$18 -> Calcareous or Siliceous Gravel | C85: =IF($E$83>'Fire Resistance Lookup Graph'!$B$3,'Fire Resistance Lookup Graph'!$B$3,IF($E$83<'Fire Resistance Lookup Graph'!$P$3,'Fire Resistance Lookup Graph'!$P$3,$E$83)) -> 3 | D85: =0.0765*C85^2+0.1955*C85-0.1732 -> 1.1018 | E85: =IF($E$90>'Fire Resistance Lookup Graph'!$B$3,'Fire Resistance Lookup Graph'!$B$3,IF($E$90<'Fire Resistance Lookup Graph'!$P$3,'Fire Resistance Lookup Graph'!$P$3,$E$90)) -> 6.2 | F85: =0.0765*E85^2+0.1955*E85-0.1732 -> 3.97956
A86: ='Fire Resistance '!$A$19 -> Limestone, Cinders or Unexpanded Slag | C86: =IF($E$83>'Fire Resistance Lookup Graph'!$B$4,'Fire Resistance Lookup Graph'!$B$4,IF($E$83<'Fire Resistance Lookup Graph'!$P$4,'Fire Resistance Lookup Graph'!$P$4,$E$83)) -> 3 | D86: =0.0839*C86^2+0.219*C86-0.2133 -> 1.1988 | E86: =IF($E$90>'Fire Resistance Lookup Graph'!$B$4,'Fire Resistance Lookup Graph'!$B$4,IF($E$90<'Fire Resistance Lookup Graph'!$P$4,'Fire Resistance Lookup Graph'!$P$4,$E$90)) -> 5.9 | F86: =0.0839*E86^2+0.219*E86-0.2133 -> 3.999359
A87: ='Fire Resistance '!$A$20 -> Expanded clay, shale, or slate | C87: =IF($E$83>'Fire Resistance Lookup Graph'!$B$5,'Fire Resistance Lookup Graph'!$B$5,IF($E$83<'Fire Resistance Lookup Graph'!$P$5,'Fire Resistance Lookup Graph'!$P$5,$E$83)) -> 3 | D87: =0.1668*C87^2-0.0765*C87+0.0839 -> 1.3556 | E87: =IF($E$90>'Fire Resistance Lookup Graph'!$B$5,'Fire Resistance Lookup Graph'!$B$5,IF($E$90<'Fire Resistance Lookup Graph'!$P$5,'Fire Resistance Lookup Graph'!$P$5,$E$90)) -> 5.1 | F87: =0.1668*E87^2-0.0765*E87+0.0839 -> 4.032218
A88: ='Fire Resistance '!$A$21 -> Expanded slag or pumice | C88: =IF($E$83>'Fire Resistance Lookup Graph'!$B$6,'Fire Resistance Lookup Graph'!$B$6,IF($E$83<'Fire Resistance Lookup Graph'!$P$6,'Fire Resistance Lookup Graph'!$P$6,$E$83)) -> 3 | D88: =0.1389*C88^2+0.2342*C88-0.1647 -> 1.788 | E88: =IF($E$90>'Fire Resistance Lookup Graph'!$B$6,'Fire Resistance Lookup Graph'!$B$6,IF($E$90<'Fire Resistance Lookup Graph'!$P$6,'Fire Resistance Lookup Graph'!$P$6,$E$90)) -> 4.7 | F88: =0.1389*E88^2+0.2342*E88-0.1647 -> 4.004341
B90: =IF(AND('Fire Resistance '!$E$31="Equivalent Thickness",'Fire Resistance '!$E$28>2,OR('Fire Resistance '!$E$30="Clay / CMU / Clay",'Fire Resistance '!$E$29="Clay / CMU")),"Equivalent Thickness for Clay Wythe #2",IF(AND('Fire Resistance '!$E$31="Equivalent Thickness",'Fire Resistance '!$E$28>2,OR('Fire Resistance '!$E$30="CMU / CMU / CMU",'Fire Resistance '!$E$29="CMU / CMU",'Fire Resistance '!$E$30="Clay / CMU / CMU")),"Equivalent Thickness for CMU Wythe #1",IF(AND('Fire Resistance '!$E$31="Fire Rating",'Fire Resistance '!$E$28>2,OR('Fire Resistance '!$E$30="Clay / CMU / Clay",'Fire Resistance '!$E$29="Clay / CMU")),"Fire Rating for clay Wythe #2",IF(AND('Fire Resistance '!$E$31="Fire Rating",'Fire Resistance '!$E$28>2,OR('Fire Resistance '!$E$30="CMU / CMU / CMU",'Fire Resistance '!$E$29="CMU / CMU",'Fire Resistance '!$E$30="Clay / CMU / CMU")),"Fire Rating for CMU Wythe #2","")))) ->  | E90: =IF('Fire Resistance '!$E$28>2,'Fire Resistance '!$E$34,"") ->  | F90: =IF(AND('Fire Resistance '!$E$31="Equivalent Thickness",'Fire Resistance '!$E$28>2), "in.",IF(AND('Fire Resistance '!$E$31="Fire Rating",'Fire Resistance '!$E$28>2),"hours","")) -> 
C92: Wythe #1 - Max/Min Equiv. Thickness Check | D92: Wythe #1 - Fire Rating | E92: Wythe #2 - Max/Min Equiv. Thickness Check | F92: Wythe #2 - Fire Rating
A93: >=75% Solid | C93: =IF($E$83>'Fire Resistance Lookup Graph'!$B$47,'Fire Resistance Lookup Graph'!$B$47,IF($E$83<'Fire Resistance Lookup Graph'!$E$47,'Fire Resistance Lookup Graph'!$E$47,$E$83)) -> 3 | D93: =-2*10^-15*$C$93+0.9091*$C$93-1.4545 -> 1.2728 | E93: =IF($E$90>'Fire Resistance Lookup Graph'!$B$47,'Fire Resistance Lookup Graph'!$B$47,IF($E$90<'Fire Resistance Lookup Graph'!$E$47,'Fire Resistance Lookup Graph'!$E$47,$E$90)) -> 6 | F93: =-2*10^-15*$E$93+0.9091*$E$93-1.4545 -> 4.0001
A94: Hollow | C94: =IF($E$83>'Fire Resistance Lookup Graph'!$B$48,'Fire Resistance Lookup Graph'!$B$48,IF($E$83<'Fire Resistance Lookup Graph'!$E$48,'Fire Resistance Lookup Graph'!$E$48,$E$83)) -> 3 | D94: =0.1367*$C$94^2+0.1072*$C$94+0.0354 -> 1.5873 | E94: =IF($E$90>'Fire Resistance Lookup Graph'!$B$48,'Fire Resistance Lookup Graph'!$B$48,IF($E$90<'Fire Resistance Lookup Graph'!$E$48,'Fire Resistance Lookup Graph'!$E$48,$E$90)) -> 5 | F94: =0.1367*$E$94^2+0.1072*$E$94+0.0354 -> 3.9889
A95: Grouted | C95: =IF($E$83>'Fire Resistance Lookup Graph'!$B$49,'Fire Resistance Lookup Graph'!$B$49,IF($E$83<'Fire Resistance Lookup Graph'!$E$49,'Fire Resistance Lookup Graph'!$E$49,$E$83)) -> 3 | D95: =0.0444*$C$95^2+0.4127*$C$95-0.6455 -> 0.9922 | E95: =IF($E$90>'Fire Resistance Lookup Graph'!$B$49,'Fire Resistance Lookup Graph'!$B$49,IF($E$90<'Fire Resistance Lookup Graph'!$E$49,'Fire Resistance Lookup Graph'!$E$49,$E$90)) -> 6.6 | F95: =0.0444*$E$95^2+0.4127*$E$95-0.6455 -> 4.012384
B98: =IF(AND('Fire Resistance '!$E$31="Equivalent Thickness",'Fire Resistance '!$E$28>=2,OR('Fire Resistance '!$E$30="Clay / CMU / Clay",'Fire Resistance '!$E$29="Clay / CMU",'Fire Resistance '!$E$30="Clay / CMU / CMU")),"Fire Rating for Clay Wythe #1",IF(AND('Fire Resistance '!$E$31="Equivalent Thickness",'Fire Resistance '!$E$28>=2,OR('Fire Resistance '!$E$30="CMU / CMU / CMU",'Fire Resistance '!$E$29="CMU / CMU")),"Fire Rating for CMU Wythe #1","")) -> Fire Rating for Clay Wythe #1 | E98: =IF(AND('Fire Resistance '!$E$31="Equivalent Thickness",'Fire Resistance '!$E$28>=2, $B$98="Fire Rating for Clay Wythe #1"), INDEX($D$93:$D$95,MATCH('Fire Resistance '!$E$37,$A$93:$A$95,0)),('Fire Resistance '!E42*D85+'Fire Resistance '!E43*D86+'Fire Resistance '!E44*D87+'Fire Resistance '!E45*D88)/100) -> 1.2728 | F98: =IF(AND('Fire Resistance '!$E$31="Equivalent Thickness",'Fire Resistance '!$E$28>=2), "hours","") -> hours
B100: =IF(AND('Fire Resistance '!$E$31="Equivalent Thickness",'Fire Resistance '!$E$28>2,OR('Fire Resistance '!$E$30="Clay / CMU / Clay",'Fire Resistance '!$E$29="Clay / CMU")),"Fire Rating for Clay Wythe #2",IF(AND('Fire Resistance '!$E$31="Equivalent Thickness",'Fire Resistance '!$E$28>2,OR('Fire Resistance '!$E$30="CMU / CMU / CMU",'Fire Resistance '!$E$29="CMU / CMU",'Fire Resistance '!$E$30="Clay / CMU / CMU")),"Fire Rating for CMU Wythe #2","")) ->  | E100: =IF(AND('Fire Resistance '!$E$31="Equivalent Thickness",'Fire Resistance '!$E$28>2,$B$100="Fire Rating for Clay Wythe #2"),INDEX($F$93:$F$95,MATCH('Fire Resistance '!$E$38,$A$93:$A$95,0)),('Fire Resistance '!E49*F85+'Fire Resistance '!E50*F86+'Fire Resistance '!E51*F87+'Fire Resistance '!E52*F88)/100) -> 0 | F100: =IF(AND('Fire Resistance '!$E$31="Equivalent Thickness",'Fire Resistance '!$E$28>2), "hours","") -> 
B102: Fire Rating of Assembly | E102: =IF(AND('Fire Resistance '!E31="Equivalent Thickness",'Fire Resistance '!E28=2),IF(SUM(E81^0.59,E98^0.59,0.3*('Fire Resistance '!E28-1))^1.7>4,4,SUM(E81^0.59,E98^0.59,0.3*('Fire Resistance '!E28-1))^1.7),IF(AND('Fire Resistance '!E31="Equivalent Thickness",'Fire Resistance '!E28=3),IF(SUM(E81^0.59,E98^0.59,E100^0.59,0.3*('Fire Resistance '!E28-1))^1.7>4,4,SUM(E81^0.59,E98^0.59,E100^0.59,0.3*('Fire Resistance '!E28-1))^1.7),IF(AND('Fire Resistance '!E31="Fire Rating",'Fire Resistance '!E28=2),IF(SUM(E81^0.59,E83^0.59,0.3*('Fire Resistance '!E28-1))^1.7>4,4,SUM(E81^0.59,E83^0.59,0.3*('Fire Resistance '!E28-1))^1.7),IF(SUM(E81^0.59,E83^0.59,E90^0.59,0.3*('Fire Resistance '!E28-1))^1.7>4,4,SUM(E81^0.59,E83^0.59,E90^0.59,0.3*('Fire Resistance '!E28-1))^1.7)))) -> 4 | F102: hours
D105: The following fire rating calculations were based off of ACI 216/1/TMS 216
G137: Date | H137: =H1 -> 00:00:00 | J137: =#REF! -> 
G138: Project Name: | H138: =H2 -> 0 | J138: =#REF! -> 
G139: Project Number: | H139: =H3 -> 0 | J139: =#REF! -> 
G140: Unit Description: | H140: =H4 -> 0 | J140: =#REF! -> 
C143: Finishes
C144: Side #1 - Fire Side | E144: ='Fire Resistance '!E109 -> Portland Cement-Sand Plaster on Metal Lath
E145: ='Fire Resistance '!E110 -> 3/8 in.
C146: Side #1 - Non-Fire Side | E146: ='Fire Resistance '!E90 -> Portland Cement Sand Plaster
E147: ='Fire Resistance '!E91 -> Siliceous_Calcareous_Limestone_Cinders_Air Cooled Blast Furnace Slag
D149: The following fire rating calculations were based off of ACI 216/1/TMS 216
A150: Fire Rating Based on Finishes - Single Wythe CMU with Finish on one side
B152: Non-Fire Side
B153: =IF('Fire Resistance '!E87="CMU Single Wythe with a finish on both sides","","Non-Fire Side Finish Factor") ->  | E153: =IF('Fire Resistance '!E87="CMU Single Wythe with a finish on both sides","",IF('Fire Resistance '!E90="Gypsum Vermiculite or Perlite Plaster",'Fire Resistance Loop Tables'!D20,IF('Fire Resistance '!E92="Yes",'Fire Resistance Loop Tables'!D20,INDEX('Fire Resistance Loop Tables'!$C$5:$D$19,MATCH('Fire Resistance '!$E$90&'Fire Resistance '!$E$101,'Fire Resistance Loop Tables'!$A$5:$A$19&'Fire Resistance Loop Tables'!B5:B19,0),MATCH('Fire Resistance '!$E$91,'Fire Resistance Loop Tables'!$C$4:$D$4,0))))) -> 
B155: =IF('Fire Resistance '!E87="CMU Single Wythe with a finish on both sides","","Non-Fire Side Finish #1 Equivalent Thickness") ->  | E155: =IF('Fire Resistance '!E87="CMU Single Wythe with a finish on both sides","",IF(OR('Fire Resistance '!E90="Gypsum Vermiculite or Perlite Plaster",'Fire Resistance '!E92="Yes"),'Fire Resistance '!E102*$E$153,$E$153*'Fire Resistance '!F101)) ->  | F155: =IF('Fire Resistance '!E87="CMU Single Wythe with a finish on both sides","","in.") -> 
B157: =IF('Fire Resistance '!E87="CMU Single Wythe with a finish on both sides","","Equivalent Thickness of Unit") ->  | E157: =IF('Fire Resistance '!E87="CMU Single Wythe with a finish on both sides","",E15) ->  | F157: =IF('Fire Resistance '!E87="CMU Single Wythe with a finish on both sides","","in.") -> 
B159: =IF('Fire Resistance '!E87="CMU Single Wythe with a finish on both sides","","Total Equivalent Thickness") ->  | E159: =IF('Fire Resistance '!E87="CMU Single Wythe with a finish on both sides","",SUM(E155,E157)) ->  | F159: =IF('Fire Resistance '!E87="CMU Single Wythe with a finish on both sides","","in.") -> 
C161: =$C$16 -> Max/Min Equivalent Thickness Check | D161: Fire Rating
A162: ='Fire Resistance '!$A$18 -> Calcareous or Siliceous Gravel | C162: =IF($E$159>'Fire Resistance Lookup Graph'!$B3,'Fire Resistance Lookup Graph'!$B3,IF($E$159<'Fire Resistance Lookup Graph'!$P3,'Fire Resistance Lookup Graph'!$P3,$E$159)) -> 6.2 | D162: =0.0765*C162^2+0.1955*C162-0.1732 -> 3.97956
A163: ='Fire Resistance '!$A$19 -> Limestone, Cinders or Unexpanded Slag | C163: =IF($E$159>'Fire Resistance Lookup Graph'!$B4,'Fire Resistance Lookup Graph'!$B4,IF($E$159<'Fire Resistance Lookup Graph'!$P4,'Fire Resistance Lookup Graph'!$P4,$E$159)) -> 5.9 | D163: =0.0839*C163^2+0.219*C163-0.2133 -> 3.999359
A164: ='Fire Resistance '!$A$20 -> Expanded clay, shale, or slate | C164: =IF($E$159>'Fire Resistance Lookup Graph'!$B5,'Fire Resistance Lookup Graph'!$B5,IF($E$159<'Fire Resistance Lookup Graph'!$P5,'Fire Resistance Lookup Graph'!$P5,$E$159)) -> 5.1 | D164: =0.1668*C164^2-0.0765*C164+0.0839 -> 4.032218
A165: ='Fire Resistance '!$A$21 -> Expanded slag or pumice | C165: =IF($E$159>'Fire Resistance Lookup Graph'!$B6,'Fire Resistance Lookup Graph'!$B6,IF($E$159<'Fire Resistance Lookup Graph'!$P6,'Fire Resistance Lookup Graph'!$P6,$E$159)) -> 4.7 | D165: =0.1389*C165^2+0.2342*C165-0.1647 -> 4.004341
B166: =IF('Fire Resistance '!E87="CMU Single Wythe with a finish on both sides","","Total Non-Fire Side Fire Rating of Unit") ->  | E166: =IF('Fire Resistance '!E87="CMU Single Wythe with finish on one (1) side",IF(('Fire Resistance '!E18*D162+'Fire Resistance '!E19*D163+'Fire Resistance '!E20*D164+'Fire Resistance '!E21*D165)/100>4,4,SUM('Fire Resistance '!E18*D162+'Fire Resistance '!E19*D163+'Fire Resistance '!E20*D164+'Fire Resistance '!E21*D165)/100),"") ->  | F166: =IF('Fire Resistance '!E87="CMU Single Wythe with a finish on both sides","","hours") -> 
B168: Fire Side
B169: =IF('Fire Resistance '!E87="CMU Single Wythe with a finish on both sides","","Fire Side Finish #1 Fire Rating") ->  | E169: =IF('Fire Resistance '!E87="CMU Single Wythe with a finish on both sides","",IF('Fire Resistance '!E90="Gypsum Vermiculite or Perlite Plaster",0,INDEX('Fire Resistance Loop Tables'!C23:C40,MATCH('Fire Resistance '!$E$109&'Fire Resistance '!E110,'Fire Resistance Loop Tables'!A23:A40&'Fire Resistance Loop Tables'!B23:B40,0)))) ->  | F169: =IF('Fire Resistance '!E87="CMU Single Wythe with a finish on both sides","","hours") -> 
B171: =IF('Fire Resistance '!E87="CMU Single Wythe with a finish on both sides","","Fire Rating of Unit") ->  | E171: =IF('Fire Resistance '!E87="CMU Single Wythe with a finish on both sides","",IF('Fire Resistance '!E90="Gypsum Vermiculite or Perlite Plaster",E81,IF('Fire Resistance '!E110="Direct Applied","Accounted for in Fire Side Finish #1 Fire Rating",E81))) ->  | F171: =IF(OR(E171="Accounted for in Fire Side Finish #1 Fire Rating",'Fire Resistance '!E87="CMU Single Wythe with a finish on both sides"),"","hours") -> 
B173: =IF('Fire Resistance '!E87="CMU Single Wythe with a finish on both sides","","Total Fire Side Fire Rating of Unit") ->  | E173: =IF('Fire Resistance '!E87="CMU Single Wythe with finish on one (1) side",IF(SUM(E169,E171)>4,4,SUM(E169,E171)),"") ->  | F173: =IF('Fire Resistance '!E87="CMU Single Wythe with a finish on both sides","","hours") -> 
G201: Date | H201: =H137 -> 00:00:00 | J201: =#REF! -> 
G202: Project Name: | H202: =H138 -> 0 | J202: =#REF! -> 
G203: Project Number: | H203: =H139 -> 0 | J203: =#REF! -> 
G204: Unit Description: | H204: =H140 -> 0 | J204: =#REF! -> 
C207: Finishes
C208: Side #1 - Fire Side | E208: =E144 -> Portland Cement-Sand Plaster on Metal Lath
E209: =E145 -> 3/8 in.
C210: Side #1 - Non-Fire Side | E210: Portland Cement Sand Plaster
E211: Siliceous_Calcareous_Limestone_Cinders_Air Cooled Blast Furnace Slag
C212: Side #2 - Fire Side | E212: ='Fire Resistance '!$E$113 -> Gypsum-Sand Plaster on 3/8 in. gypsum lath
E213: ='Fire Resistance '!$E$114 -> 1/2 in.
C214: Side #2 - Non-Fire Side | E214: ='Fire Resistance '!$E$96 -> Gypsum Sand Plaster
E215: ='Fire Resistance '!$E$97 -> Siliceous_Calcareous_Limestone_Cinders_Air Cooled Blast Furnace Slag
D217: The following fire rating calculations were based off of ACI 216/1/TMS 216
A218: =IF('Fire Resistance '!E87="CMU Single Wythe with a finish on both sides","Fire Rating Based on Finishes - Both Sides","") -> Fire Rating Based on Finishes - Both Sides
B220: Fire on Finish #1 Side
B221: =IF('Fire Resistance '!E87="CMU Single Wythe with a finish on both sides","Fire Side Finish #1 Fire Rating","") -> Fire Side Finish #1 Fire Rating | E221: =IF(ISNUMBER('Fire Resistance Loop Tables'!C114),'Fire Resistance Loop Tables'!C114,0) -> 0 | F221: =IF(AND('Fire Resistance '!$E$87="CMU Single Wythe with a finish on both sides",'Fire Resistance '!E92="Yes",'Fire Resistance '!E96="Gypsum Vermiculite or Perlite Plaster"),"","hours") -> hours
B223: =IF('Fire Resistance '!E87="CMU Single Wythe with a finish on both sides","Non-Fire Side Finish #2 Factor","") -> Non-Fire Side Finish #2 Factor | E223: =IF(AND('Fire Resistance '!E87="CMU Single Wythe with a finish on both sides",OR('Fire Resistance '!E96="Gypsum Vermiculite or Perlite Plaster",'Fire Resistance '!E98="Yes")),'Fire Resistance Loop Tables'!D74,INDEX('Fire Resistance Loop Tables'!$C$59:$D$68,MATCH('Fire Resistance '!$E$96&'Fire Resistance '!$E$104,'Fire Resistance Loop Tables'!$A$59:$A$73&'Fire Resistance Loop Tables'!$B$59:$B$73,0),MATCH('Fire Resistance '!$E$97,'Fire Resistance Loop Tables'!$C$58:$D$58,0))) -> 1.25
B224: =IF('Fire Resistance '!$E$87="CMU Single Wythe with a finish on both sides","Non-Fire Side Finish #2 Equivalent Thickness","") -> Non-Fire Side Finish #2 Equivalent Thickness | E224: =IF('Fire Resistance '!$E$87="CMU Single Wythe with a finish on both sides",IF(AND('Fire Resistance '!$E$90="Gypsum Vermiculite or Perlite Plaster",'Fire Resistance '!$E$98="Yes"),'Fire Resistance '!E105*'Fire Resistance Rating'!E223,IF(AND('Fire Resistance '!E96="Gypsum Vermiculite or Perlite Plaster",'Fire Resistance '!E92="Yes"),'Fire Resistance Loop Tables'!B43+'Fire Resistance '!E105*'Fire Resistance Rating'!E223,IF('Fire Resistance '!$E$90="Gypsum Vermiculite or Perlite Plaster",'Fire Resistance '!F104*'Fire Resistance Rating'!E223,IF('Fire Resistance '!E96="Gypsum Vermiculite or Perlite Plaster",'Fire Resistance '!E105*E223,IF(OR('Fire Resistance '!E96="Portland Cement Sand Plaster",'Fire Resistance '!E96="Gypsum Sand Plaster",'Fire Resistance '!E96="Gypsum Wallboard"),E223*'Fire Resistance '!F104,'Fire Resistance Loop Tables'!B98+'Fire Resistance '!E105*'Fire Resistance Rating'!E223)))))) -> 0.625 | F224: =IF('Fire Resistance '!$E$87="CMU Single Wythe with a finish on both sides","in.","") -> in.
B225: =IF('Fire Resistance '!E87="CMU Single Wythe with a finish on both sides","Equivalent Thickness of Unit","") -> Equivalent Thickness of Unit | E225: =IF('Fire Resistance '!E87="CMU Single Wythe with a finish on both sides",E15,"") -> 8 | F225: =IF('Fire Resistance '!$E$87="CMU Single Wythe with a finish on both sides","in.","") -> in.
B226: =IF('Fire Resistance '!E87="CMU Single Wythe with a finish on both sides","Total Equivalent Thickness","") -> Total Equivalent Thickness | E226: =IF('Fire Resistance '!E87="CMU Single Wythe with a finish on both sides",SUM(E224,E225),"") -> 8.625 | F226: =IF('Fire Resistance '!$E$87="CMU Single Wythe with a finish on both sides","in.","") -> in.
C227: =$C$16 -> Max/Min Equivalent Thickness Check | D227: Fire Rating
A228: ='Fire Resistance '!$A$18 -> Calcareous or Siliceous Gravel | C228: =IF($E$226>'Fire Resistance Lookup Graph'!$B3,'Fire Resistance Lookup Graph'!$B3,IF($E$226<'Fire Resistance Lookup Graph'!$P3,'Fire Resistance Lookup Graph'!$P3,$E$226)) -> 6.2 | D228: =0.0765*C228^2+0.1955*C228-0.1732 -> 3.97956
A229: ='Fire Resistance '!$A$19 -> Limestone, Cinders or Unexpanded Slag | C229: =IF($E$226>'Fire Resistance Lookup Graph'!$B4,'Fire Resistance Lookup Graph'!$B4,IF($E$226<'Fire Resistance Lookup Graph'!$P4,'Fire Resistance Lookup Graph'!$P4,$E$226)) -> 5.9 | D229: =0.0839*C229^2+0.219*C229-0.2133 -> 3.999359
A230: ='Fire Resistance '!$A$20 -> Expanded clay, shale, or slate | C230: =IF($E$226>'Fire Resistance Lookup Graph'!$B5,'Fire Resistance Lookup Graph'!$B5,IF($E$226<'Fire Resistance Lookup Graph'!$P5,'Fire Resistance Lookup Graph'!$P5,$E$226)) -> 5.1 | D230: =0.1668*C230^2-0.0765*C230+0.0839 -> 4.032218
A231: ='Fire Resistance '!$A$21 -> Expanded slag or pumice | C231: =IF($E$226>'Fire Resistance Lookup Graph'!$B6,'Fire Resistance Lookup Graph'!$B6,IF($E$226<'Fire Resistance Lookup Graph'!$P6,'Fire Resistance Lookup Graph'!$P6,$E$226)) -> 4.7 | D231: =0.1389*C231^2+0.2342*C231-0.1647 -> 4.004341
B232: =IF('Fire Resistance '!E87="CMU Single Wythe with a finish on both sides","Total Non-Fire Side Fire Rating of Unit","") -> Total Non-Fire Side Fire Rating of Unit | E232: =IF('Fire Resistance '!E87="CMU Single Wythe with a finish on both sides",('Fire Resistance '!E18*D228+'Fire Resistance '!E19*D229+'Fire Resistance '!E20*D230+'Fire Resistance '!E21*D231)/100,"") -> 3.9986037 | F232: =IF('Fire Resistance '!$E$87="CMU Single Wythe with a finish on both sides","hours","") -> hours
B234: =IF('Fire Resistance '!E87="CMU Single Wythe with a finish on both sides","Total Fire Rating of Unit","") -> Total Fire Rating of Unit | E234: =IF(AND('Fire Resistance '!E87="CMU Single Wythe with a finish on both sides",'Fire Resistance '!E96="Gypsum Vermiculite or Perlite Plaster",'Fire Resistance '!E92="Yes"),E232,IF(E221+E232>4,4,SUM(E221,E232))) -> 3.9986037 | F234: =IF('Fire Resistance '!$E$87="CMU Single Wythe with a finish on both sides","hours","") -> hours
B236: Fire on Finish #2 Side
B237: =IF('Fire Resistance '!E87="CMU Single Wythe with a finish on both sides","Fire Side Finish #2 Fire Rating","") -> Fire Side Finish #2 Fire Rating | E237: =IF('Fire Resistance '!E87="CMU Single Wythe with a finish on both sides",IF(AND('Fire Resistance '!E90="Gypsum Vermiculite or Perlite Plaster",'Fire Resistance '!E98="Yes"),"Accounted for in thickness below",IF('Fire Resistance '!E96="Gypsum Vermiculite or Perlite Plaster",0,INDEX('Fire Resistance Loop Tables'!C77:C94,MATCH('Fire Resistance '!$E$113&'Fire Resistance '!E114,'Fire Resistance Loop Tables'!A77:A94&'Fire Resistance Loop Tables'!B77:B94,0))))) -> 0.5833333333 | F237: =IF(AND('Fire Resistance '!$E$87="CMU Single Wythe with a finish on both sides",'Fire Resistance '!E98="Yes",'Fire Resistance '!E90="Gypsum Vermiculite or Perlite Plaster"),"","hours") -> hours
B239: =IF('Fire Resistance '!E87="CMU Single Wythe with a finish on both sides","Non-Fire Side Finish #1 Factor","") -> Non-Fire Side Finish #1 Factor | E239: =IF(AND('Fire Resistance '!$E$87="CMU Single Wythe with a finish on both sides",'Fire Resistance '!$E$90="Gypsum Vermiculite and Perlite Plaster"),'Fire Resistance Loop Tables'!$D$20,INDEX('Fire Resistance Loop Tables'!$C$5:$D$19,MATCH('Fire Resistance '!$E$90,'Fire Resistance Loop Tables'!$A$5:$A$19,0),MATCH('Fire Resistance '!$E$91,'Fire Resistance Loop Tables'!$C$4:$D$4,0))) -> 1
B240: =IF('Fire Resistance '!$E$87="CMU Single Wythe with a finish on both sides","Non-Fire Side Finish #1 Equivalent Thickness","") -> Non-Fire Side Finish #1 Equivalent Thickness | E240: =IF('Fire Resistance '!$E$87="CMU Single Wythe with a finish on both sides",IF(AND('Fire Resistance '!$E$90="Gypsum Vermiculite or Perlite Plaster",'Fire Resistance '!$E$98="Yes"),'Fire Resistance Loop Tables'!B98+'Fire Resistance '!E102*'Fire Resistance Rating'!E239,IF(AND('Fire Resistance '!E96="Gypsum Vermiculite or Perlite Plaster",'Fire Resistance '!E92="Yes"),'Fire Resistance '!E102*E239,IF('Fire Resistance '!$E$90="Gypsum Vermiculite or Perlite Plaster",'Fire Resistance '!E102*'Fire Resistance Rating'!E239,'Fire Resistance '!F101*'Fire Resistance Rating'!E239)))) -> 0.5 | F240: =IF('Fire Resistance '!$E$87="CMU Single Wythe with a finish on both sides","in.","") -> in.
B241: =IF('Fire Resistance '!E87="CMU Single Wythe with a finish on both sides","Equivalent Thickness of Unit","") -> Equivalent Thickness of Unit | E241: =IF('Fire Resistance '!E87="CMU Single Wythe with a finish on both sides",E15,"") -> 8 | F241: =IF('Fire Resistance '!$E$87="CMU Single Wythe with a finish on both sides","in.","") -> in.
B242: =IF('Fire Resistance '!E87="CMU Single Wythe with a finish on both sides","Total Equivalent Thickness","") -> Total Equivalent Thickness | E242: =IF('Fire Resistance '!E87="CMU Single Wythe with a finish on both sides",SUM(E240,E241),"") -> 8.5 | F242: =IF('Fire Resistance '!$E$87="CMU Single Wythe with a finish on both sides","in.","") -> in.
C243: =$C$16 -> Max/Min Equivalent Thickness Check | D243: Fire Rating
A244: ='Fire Resistance '!$A$18 -> Calcareous or Siliceous Gravel | C244: =IF($E$242>'Fire Resistance Lookup Graph'!$B3,'Fire Resistance Lookup Graph'!$B3,IF($E$242<'Fire Resistance Lookup Graph'!$P3,'Fire Resistance Lookup Graph'!$P3,$E$242)) -> 6.2 | D244: =0.0765*C244^2+0.1955*C244-0.1732 -> 3.97956
A245: ='Fire Resistance '!$A$19 -> Limestone, Cinders or Unexpanded Slag | C245: =IF($E$242>'Fire Resistance Lookup Graph'!$B4,'Fire Resistance Lookup Graph'!$B4,IF($E$242<'Fire Resistance Lookup Graph'!$P4,'Fire Resistance Lookup Graph'!$P4,$E$242)) -> 5.9 | D245: =0.0839*C245^2+0.219*C245-0.2133 -> 3.999359
A246: ='Fire Resistance '!$A$20 -> Expanded clay, shale, or slate | C246: =IF($E$242>'Fire Resistance Lookup Graph'!$B5,'Fire Resistance Lookup Graph'!$B5,IF($E$242<'Fire Resistance Lookup Graph'!$P5,'Fire Resistance Lookup Graph'!$P5,$E$242)) -> 5.1 | D246: =0.1668*C246^2-0.0765*C246+0.0839 -> 4.032218
A247: ='Fire Resistance '!$A$21 -> Expanded slag or pumice | C247: =IF($E$242>'Fire Resistance Lookup Graph'!$B6,'Fire Resistance Lookup Graph'!$B6,IF($E$242<'Fire Resistance Lookup Graph'!$P6,'Fire Resistance Lookup Graph'!$P6,$E$242)) -> 4.7 | D247: =0.1389*C247^2+0.2342*C247-0.1647 -> 4.004341
B248: =IF('Fire Resistance '!E87="CMU Single Wythe with a finish on both sides","Total Non-Fire Side Fire Rating of Unit","") -> Total Non-Fire Side Fire Rating of Unit | E248: =IF('Fire Resistance '!E87="CMU Single Wythe with a finish on both sides",('Fire Resistance '!E18*D244+'Fire Resistance '!E19*D245+'Fire Resistance '!E20*D246+'Fire Resistance '!E21*D247)/100,"") -> 3.9986037 | F248: =IF('Fire Resistance '!$E$87="CMU Single Wythe with a finish on both sides","hours","") -> hours
B250: =IF('Fire Resistance '!E87="CMU Single Wythe with a finish on both sides","Total Fire Rating of Unit","") -> Total Fire Rating of Unit | E250: =IF(AND('Fire Resistance '!E87="CMU Single Wythe with a finish on both sides",'Fire Resistance '!E90="Gypsum Vermiculite or Perlite Plaster", 'Fire Resistance '!E98="Yes"),E248,IF(E237+E248>4,4,SUM(E237,E248))) -> 4 | F250: =IF('Fire Resistance '!$E$87="CMU Single Wythe with a finish on both sides","hours","") -> hours

Sheet Fire Resistance Loop Tables (hidden)
A1: Side 1
A2: Non-Fire Side
B3: Finish | C3: Aggregate Type
A4: Type | C4: Siliceous_Calcareous_Limestone_Cinders_Air Cooled Blast Furnace Slag | D4: 80% or more by volume of expanded shale_slate_clay_slag_pumice
A5: Portland Cement Sand Plaster | B5: 3/4 in. | C5: 1 | D5: =IF(AND('Fire Resistance '!$E$92="Yes",'Fire Resistance '!$E$102<5/8),1,IF(AND('Fire Resistance '!$E$93=100,'Fire Resistance '!$E$92="No"),0.5,0.75)) -> 0.75
A6: Portland Cement Sand Plaster | B6: 7/8 in. | C6: 1 | D6: =IF(AND('Fire Resistance '!$E$92="Yes",'Fire Resistance '!$E$102<5/8),1,IF(AND('Fire Resistance '!$E$93=100,'Fire Resistance '!$E$92="No"),0.5,0.75)) -> 0.75
A7: Portland Cement Sand Plaster | B7: 1 in. | C7: 1 | D7: =IF(AND('Fire Resistance '!$E$92="Yes",'Fire Resistance '!$E$102<5/8),1,IF(AND('Fire Resistance '!$E$93=100,'Fire Resistance '!$E$92="No"),0.5,0.75)) -> 0.75
A8: Gypsum Sand Plaster | B8: 1/2 in. | C8: 1.25 | D8: 1
A9: Gypsum Sand Plaster | B9: 5/8 in. | C9: 1.25 | D9: 1
A10: Gypsum Sand Plaster | B10: 3/4 in. | C10: 1.25 | D10: 1
A11: Gypsum Sand Plaster | B11: 7/8 in. | C11: 1.25 | D11: 1
A12: Gypsum Sand Plaster | B12: 1 in. | C12: 1.25 | D12: 1
A13: Gypsum Vermiculite or Perlite Plaster | C13: 1.75 | D13: 1.25
A14: Gypsum Wallboard | B14: 3/8 in. | C14: 3 | D14: 2.25
A15: Gypsum Wallboard | B15: 1/2 in. | C15: 3 | D15: 2.25
A16: Gypsum Wallboard | B16: 5/8 in. | C16: 3 | D16: 2.25
A17: Gypsum Wallboard | B17: Two Layers of 3/8 in. | C17: 3 | D17: 2.25
A18: Gypsum Wallboard | B18: One Layer of 3/8 in. and One layer of 1/2 in. | C18: 3 | D18: 2.25
A19: Gypsum Wallboard | B19: Two layers of 1/2 in. | C19: 3 | D19: 2.25
D20: =INDEX('Fire Resistance Loop Tables'!$C$5:$D$19,MATCH('Fire Resistance '!$E$90,'Fire Resistance Loop Tables'!$A$5:$A$19,0),MATCH('Fire Resistance '!$E$91,'Fire Resistance Loop Tables'!$C$4:$D$4,0)) -> 1
A21: Fire Side
B22: Finish | C22: Time (hr)
A23: Gypsum Wallboard | B23: 3/8 in. | C23: =10/60 -> 0.1666666667
A24: Gypsum Wallboard | B24: 1/2 in. | C24: =15/60 -> 0.25
A25: Gypsum Wallboard | B25: 5/8 in. | C25: =20/60 -> 0.3333333333
A26: Gypsum Wallboard | B26: Two Layers of 3/8 in. | C26: =25/60 -> 0.4166666667
A27: Gypsum Wallboard | B27: One Layer of 3/8 in. and One layer of 1/2 in. | C27: =35/60 -> 0.5833333333
A28: Gypsum Wallboard | B28: Two layers of 1/2 in. | C28: =40/60 -> 0.6666666667
A29: Type 'X' Gypsum Wallboard | B29: 1/2 in. | C29: =25/60 -> 0.4166666667
A30: Type 'X' Gypsum Wallboard | B30: 5/8 in. | C30: =40/60 -> 0.6666666667
A31: Direct Applied Portland Cement | B31: Direct Applied | C31: =(C44*C49+C45*C50+C46*C51+C47*C52)/100 -> 3.9986037
A32: Portland Cement-Sand Plaster on Metal Lath | B32: 3/4 in. | C32: =20/60 -> 0.3333333333
A33: Portland Cement-Sand Plaster on Metal Lath | B33: 7/8 in. | C33: =25/60 -> 0.4166666667
A34: Portland Cement-Sand Plaster on Metal Lath | B34: 1 in. | C34: =30/60 -> 0.5
A35: Gypsum-Sand Plaster on 3/8 in. gypsum lath | B35: 1/2 in. | C35: =35/60 -> 0.5833333333
A36: Gypsum-Sand Plaster on 3/8 in. gypsum lath | B36: 5/8 in. | C36: =40/60 -> 0.6666666667
A37: Gypsum-Sand Plaster on 3/8 in. gypsum lath | B37: 3/4 in. | C37: =50/60 -> 0.8333333333
A38: Gypsum-Sand Plaster on Metal Lath | B38: 3/4 in. | C38: =50/60 -> 0.8333333333
A39: Gypsum-Sand Plaster on Metal Lath | B39: 7/8 in. | C39: =60/60 -> 1
A40: Gypsum-Sand Plaster on Metal Lath | B40: 1 in. | C40: =80/60 -> 1.333333333
A42: DIRECT APPLIED FIRE RATING CALCULATION
A43: Fire Side Thickness | B43: =IF('Fire Resistance '!E111>5/8,5/8,'Fire Resistance '!E111) -> 0
A44: Calcareous or Siliceous Gravel | C44: ='Fire Resistance '!$E$18 -> 35
A45: Limestone, Cinders or Unexpanded Slag | C45: ='Fire Resistance '!$E$19 -> 25
A46: Expanded clay, shale, or slate | C46: ='Fire Resistance '!$E$20 -> 15
A47: Expanded slag or pumice | C47: ='Fire Resistance '!$E$21 -> 25
B48: Max/Min Equivalent Thickness Check | C48: Fire Rating
A49: Calcareous or Siliceous Gravel | B49: =IF(SUM($B$43+'Fire Resistance Rating'!$E$15)>'Fire Resistance Lookup Graph'!$B3,'Fire Resistance Lookup Graph'!$B3,IF(SUM($B$43+'Fire Resistance Rating'!$E$15)<'Fire Resistance Lookup Graph'!$P3,'Fire Resistance Lookup Graph'!$P3,SUM($B$43+'Fire Resistance Rating'!$E$15))) -> 6.2 | C49: =0.0765*$B$49^2+0.1955*$B$49-0.1732 -> 3.97956
A50: Limestone, Cinders or Unexpanded Slag | B50: =IF(SUM($B$43+'Fire Resistance Rating'!$E$15)>'Fire Resistance Lookup Graph'!$B4,'Fire Resistance Lookup Graph'!$B4,IF(SUM($B$43+'Fire Resistance Rating'!$E$15)<'Fire Resistance Lookup Graph'!$P4,'Fire Resistance Lookup Graph'!$P4,SUM($B$43+'Fire Resistance Rating'!$E$15))) -> 5.9 | C50: =0.0839*$B$50^2+0.219*$B$50-0.2133 -> 3.999359
A51: Expanded clay, shale, or slate | B51: =IF(SUM($B$43+'Fire Resistance Rating'!$E$15)>'Fire Resistance Lookup Graph'!$B5,'Fire Resistance Lookup Graph'!$B5,IF(SUM($B$43+'Fire Resistance Rating'!$E$15)<'Fire Resistance Lookup Graph'!$P5,'Fire Resistance Lookup Graph'!$P5,SUM($B$43+'Fire Resistance Rating'!$E$15))) -> 5.1 | C51: =0.1668*$B$51^2-0.0765*$B$51+0.0839 -> 4.032218
A52: Expanded slag or pumice | B52: =IF(SUM($B$43+'Fire Resistance Rating'!$E$15)>'Fire Resistance Lookup Graph'!$B6,'Fire Resistance Lookup Graph'!$B6,IF(SUM($B$43+'Fire Resistance Rating'!$E$15)<'Fire Resistance Lookup Graph'!$P6,'Fire Resistance Lookup Graph'!$P6,SUM($B$43+'Fire Resistance Rating'!$E$15))) -> 4.7 | C52: =0.1389*$B$52^2+0.2342*$B$52-0.1647 -> 4.004341
A55: Side 2
A56: Non-Fire Side
B57: Finish | C57: Aggregate Type
A58: Type | C58: Siliceous_Calcareous_Limestone_Cinders_Air Cooled Blast Furnace Slag | D58: 80% or more by volume of expanded shale_slate_clay_slag_pumice
A59: Portland Cement Sand Plaster | B59: 3/4 in. | C59: 1 | D59: =IF(AND('Fire Resistance '!E96="Portland Cement Sand Plaster",'Fire Resistance '!E98="Yes",'Fire Resistance '!$E$105<5/8),1,IF(AND('Fire Resistance '!$E$99=100,'Fire Resistance '!$E$98="No"),0.5,0.75)) -> 0.75
A60: Portland Cement Sand Plaster | B60: 7/8 in. | C60: 1 | D60: =IF(AND('Fire Resistance '!E96="Portland Cement Sand Plaster",'Fire Resistance '!E98="Yes",'Fire Resistance '!$E$105<5/8),1,IF(AND('Fire Resistance '!$E$99=100,'Fire Resistance '!$E$98="No"),0.5,0.75)) -> 0.75
A61: Portland Cement Sand Plaster | B61: 1 in. | C61: 1 | D61: =IF(AND('Fire Resistance '!E96="Portland Cement Sand Plaster",'Fire Resistance '!E98="Yes",'Fire Resistance '!$E$105<5/8),1,IF(AND('Fire Resistance '!$E$99=100,'Fire Resistance '!$E$98="No"),0.5,0.75)) -> 0.75
A62: Gypsum Sand Plaster | B62: 1/2 in. | C62: 1.25 | D62: 1
A63: Gypsum Sand Plaster | B63: 5/8 in. | C63: 1.25 | D63: 1
A64: Gypsum Sand Plaster | B64: 3/4 in. | C64: 1.25 | D64: 1
A65: Gypsum Sand Plaster | B65: 7/8 in. | C65: 1.25 | D65: 1
A66: Gypsum Sand Plaster | B66: 1 in. | C66: 1.25 | D66: 1
A67: Gypsum Vermiculite or Perlite Plaster | C67: 1.75 | D67: 1.25
A68: Gypsum Wallboard | B68: 3/8 in. | C68: 3 | D68: 2.25
A69: Gypsum Wallboard | B69: 1/2 in. | C69: 3 | D69: 2.25
A70: Gypsum Wallboard | B70: 5/8 in. | C70: 3 | D70: 2.25
A71: Gypsum Wallboard | B71: Two Layers of 3/8 in. | C71: 3 | D71: 2.25
A72: Gypsum Wallboard | B72: One Layer of 3/8 in. and One layer of 1/2 in. | C72: 3 | D72: 2.25
A73: Gypsum Wallboard | B73: Two layers of 1/2 in. | C73: 3 | D73: 2.25
D74: =INDEX('Fire Resistance Loop Tables'!$C$59:$D$73,MATCH('Fire Resistance '!$E$96,'Fire Resistance Loop Tables'!$A$59:$A$73,0),MATCH('Fire Resistance '!$E$97,'Fire Resistance Loop Tables'!$C$58:$D$58,0)) -> 1.25
A75: Fire Side
B76: Finish | C76: Time (hr)
A77: Gypsum Wallboard | B77: 3/8 in. | C77: =10/60 -> 0.1666666667
A78: Gypsum Wallboard | B78: 1/2 in. | C78: =15/60 -> 0.25
A79: Gypsum Wallboard | B79: 5/8 in. | C79: =20/60 -> 0.3333333333
A80: Gypsum Wallboard | B80: Two Layers of 3/8 in. | C80: =25/60 -> 0.4166666667
A81: Gypsum Wallboard | B81: One Layer of 3/8 in. and One layer of 1/2 in. | C81: =35/60 -> 0.5833333333
A82: Gypsum Wallboard | B82: Two layers of 1/2 in. | C82: =40/60 -> 0.6666666667
A83: Type 'X' Gypsum Wallboard | B83: 1/2 in. | C83: =25/60 -> 0.4166666667
A84: Type 'X' Gypsum Wallboard | B84: 5/8 in. | C84: =40/60 -> 0.6666666667
A85: Direct Applied Portland Cement | B85: Direct Applied | C85: =(C99*C104+C100*C105+C101*C106+C102*C107)/100 -> 3.9986037
A86: Portland Cement-Sand Plaster on Metal Lath | B86: 3/4 in. | C86: =20/60 -> 0.3333333333
A87: Portland Cement-Sand Plaster on Metal Lath | B87: 7/8 in. | C87: =25/60 -> 0.4166666667
A88: Portland Cement-Sand Plaster on Metal Lath | B88: 1 in. | C88: =30/60 -> 0.5
A89: Gypsum-Sand Plaster on 3/8 in. gypsum lath | B89: 1/2 in. | C89: =35/60 -> 0.5833333333
A90: Gypsum-Sand Plaster on 3/8 in. gypsum lath | B90: 5/8 in. | C90: =40/60 -> 0.6666666667
A91: Gypsum-Sand Plaster on 3/8 in. gypsum lath | B91: 3/4 in. | C91: =50/60 -> 0.8333333333
A92: Gypsum-Sand Plaster on Metal Lath | B92: 3/4 in. | C92: =50/60 -> 0.8333333333
A93: Gypsum-Sand Plaster on Metal Lath | B93: 7/8 in. | C93: =60/60 -> 1
A94: Gypsum-Sand Plaster on Metal Lath | B94: 1 in. | C94: =80/60 -> 1.333333333
A97: DIRECT APPLIED FIRE RATING CALCULATION
A98: Direct Applied Thickness | B98: =IF('Fire Resistance '!E115<5/8,'Fire Resistance '!E115,5/8) -> 0
A99: Calcareous or Siliceous Gravel | C99: ='Fire Resistance '!$E$18 -> 35
A100: Limestone, Cinders or Unexpanded Slag | C100: ='Fire Resistance '!$E$19 -> 25
A101: Expanded clay, shale, or slate | C101: ='Fire Resistance '!$E$20 -> 15
A102: Expanded slag or pumice | C102: ='Fire Resistance '!$E$21 -> 25
B103: Max/Min Equivalent Thickness Check | C103: Fire Rating
A104: Calcareous or Siliceous Gravel | B104: =IF(SUM($B$98+'Fire Resistance Rating'!$E$15)>'Fire Resistance Lookup Graph'!$B3,'Fire Resistance Lookup Graph'!$B3,IF(SUM($B$98+'Fire Resistance Rating'!$E$15)<'Fire Resistance Lookup Graph'!$P3,'Fire Resistance Lookup Graph'!$P3,SUM($B$98+'Fire Resistance Rating'!$E$15))) -> 6.2 | C104: =0.0765*$B104^2+0.1955*$B104-0.1732 -> 3.97956
A105: Limestone, Cinders or Unexpanded Slag | B105: =IF(SUM($B$98+'Fire Resistance Rating'!$E$15)>'Fire Resistance Lookup Graph'!$B4,'Fire Resistance Lookup Graph'!$B4,IF(SUM($B$98+'Fire Resistance Rating'!$E$15)<'Fire Resistance Lookup Graph'!$P4,'Fire Resistance Lookup Graph'!$P4,SUM($B$98+'Fire Resistance Rating'!$E$15))) -> 5.9 | C105: =0.0839*$B$105^2+0.219*$B$105-0.2133 -> 3.999359
A106: Expanded clay, shale, or slate | B106: =IF(SUM($B$98+'Fire Resistance Rating'!$E$15)>'Fire Resistance Lookup Graph'!$B5,'Fire Resistance Lookup Graph'!$B5,IF(SUM($B$98+'Fire Resistance Rating'!$E$15)<'Fire Resistance Lookup Graph'!$P5,'Fire Resistance Lookup Graph'!$P5,SUM($B$98+'Fire Resistance Rating'!$E$15))) -> 5.1 | C106: =0.1668*$B$106^2-0.0765*$B$106+0.0839 -> 4.032218
A107: Expanded slag or pumice | B107: =IF(SUM($B$98+'Fire Resistance Rating'!$E$15)>'Fire Resistance Lookup Graph'!$B6,'Fire Resistance Lookup Graph'!$B6,IF(SUM($B$98+'Fire Resistance Rating'!$E$15)<'Fire Resistance Lookup Graph'!$P6,'Fire Resistance Lookup Graph'!$P6,SUM($B$98+'Fire Resistance Rating'!$E$15))) -> 4.7 | C107: =0.1389*$B$107^2+0.2342*$B$107-0.1647 -> 4.004341
A114: Calculation for single wythe with finish on both sides - finish #1 side | C114: =IF('Fire Resistance '!$E$87="CMU Single Wythe with a finish on both sides",IF(AND('Fire Resistance '!E92="Yes",'Fire Resistance '!E96="Gypsum Vermiculite or Perlite Plaster"),"Accounted for in thickness",IF('Fire Resistance '!E90="Gypsum Vermiculite or Perlite Plaster",0,INDEX('Fire Resistance Loop Tables'!$C$77:$C$94,MATCH('Fire Resistance '!$E$109&'Fire Resistance '!$E$110,'Fire Resistance Loop Tables'!$A$77:$A$94&'Fire Resistance Loop Tables'!$B$77:$B$94,0))))) -> 
A115: Calculation for single wythe with finish on both sides - finish #2 side | C115: =IF('Fire Resistance '!E87="CMU Single Wythe with a finish on both sides",IF(AND('Fire Resistance '!E90="Gypsum Vermiculite or Perlite Plaster",'Fire Resistance '!E98="Yes"),"Accounted for in thickness below",IF('Fire Resistance '!E96="Gypsum Vermiculite or Perlite Plaster",0,INDEX('Fire Resistance Loop Tables'!C77:C94,MATCH('Fire Resistance '!$E$113&'Fire Resistance '!E114,'Fire Resistance Loop Tables'!A77:A94&'Fire Resistance Loop Tables'!B77:B94,0))))) -> 0.5833333333

Sheet Fire Resistance Lookup Graph (hidden)
A1: Reference Table
B2: 4 | C2: 3.75 | D2: 3.5 | E2: 3.25 | F2: 3 | G2: 2.75 | H2: 2.5 | I2: 2.25 | J2: 2 | K2: 1.75 | L2: 1.5 | M2: 1.25 | N2: 1 | O2: 0.75 | P2: 0.5
A3: ='Fire Resistance '!A18 -> Calcareous or Siliceous Gravel | B3: 6.2 | C3: 6 | D3: 5.8 | E3: 5.5 | F3: 5.3 | G3: 5 | H3: 4.8 | I3: 4.5 | J3: 4.2 | K3: 3.9 | L3: 3.6 | M3: 3.2 | N3: 2.8 | O3: 2.4 | P3: 2
A4: ='Fire Resistance '!A19 -> Limestone, Cinders or Unexpanded Slag | B4: 5.9 | C4: 5.7 | D4: 5.5 | E4: 5.2 | F4: 5 | G4: 4.8 | H4: 4.5 | I4: 4.3 | J4: 4 | K4: 3.7 | L4: 3.4 | M4: 3.1 | N4: 2.7 | O4: 2.3 | P4: 1.9
A5: ='Fire Resistance '!A20 -> Expanded clay, shale, or slate | B5: 5.1 | C5: 4.9 | D5: 4.8 | E5: 4.6 | F5: 4.4 | G5: 4.2 | H5: 4 | I5: 3.8 | J5: 3.6 | K5: 3.4 | L5: 3.3 | M5: 2.9 | N5: 2.6 | O5: 2.2 | P5: 1.8
A6: ='Fire Resistance '!A21 -> Expanded slag or pumice | B6: 4.7 | C6: 4.5 | D6: 4.4 | E6: 4.2 | F6: 4 | G6: 3.8 | H6: 3.6 | I6: 3.4 | J6: 3.2 | K6: 3 | L6: 2.7 | M6: 2.5 | N6: 2.1 | O6: 1.9 | P6: 1.5
B46: 4 | C46: 3 | D46: 2 | E46: 1
A47: >= 75% Solid | B47: 6 | C47: 4.9 | D47: 3.8 | E47: 2.7
A48: Hollow | B48: 5 | C48: 4.3 | D48: 3.4 | E48: 2.3
A49: Grouted | B49: 6.6 | C49: 5.5 | D49: 4.4 | E49: 3
